fUST/lending_fUST_20250829
["ID","MTS","AMOUNT","RATE_DAILY","PERIOD"]
[382005600,1756474233547,-500.0,0.0003037,2]
[382005602,1756474233556,-500.0,0.00030373,5]
[382005604,1756474233566,-500.0,0.00030373,5]
[382005606,1756474233575,-500.0,0.00030373,5]
[382005608,1756474233584,-500.0,0.00030373,5]
[382005610,1756474233594,-500.0,0.00030373,5]
[382005612,1756474233604,-233.34249403,0.00030373,5]
[382005615,1756474233613,-500.38179038,0.00030373,5]
[382005617,1756474233627,-202.13748483,0.00030373,5]
[382005619,1756474233636,-500.0,0.00030373,5]
[382005620,1756474233646,-502.50935352,0.00030373,5]
[382005622,1756474233656,-523.10663857,0.00030373,5]
[382005625,1756474233666,-500.0,0.00030373,5]
[382005626,1756474233676,-500.85318547,0.00030373,5]
[382005628,1756474233686,-500.0,0.00030373,5]
[382005631,1756474233695,-500.0,0.00030373,5]
[382005633,1756474233706,-500.0,0.00030373,5]
[382005634,1756474233716,-500.0,0.00030373,5]
[382005636,1756474233726,-500.84012531,0.00030373,5]
[382005638,1756474233735,-500.0,0.00030373,5]
[382005640,1756474233746,-500.0,0.00030373,5]
[382005642,1756474233758,-446.56293833,0.00030373,5]
[382005644,1756474233768,-154.92473883,0.00030373,5]
[382005646,1756474233778,-500.0,0.00030373,5]
[382005648,1756474233788,-500.0,0.00030373,5]
[382005650,1756474233798,-500.0,0.00030373,5]
[382005652,1756474233807,-500.0,0.00030373,5]
[382005654,1756474233817,-500.98881604,0.00030373,5]
[382005656,1756474233827,-500.0,0.00030373,5]
[382005658,1756474233837,-500.0,0.00030373,5]
[382005660,1756474233846,-500.0,0.00030373,5]
[382005662,1756474233856,-501.06225598,0.00030373,5]
[382005664,1756474233867,-985.0,0.0003055,60]
[382005666,1756474233884,-200.0,0.00030557,120]
[382005668,1756474233894,-256.0,0.00030557,120]
[382005670,1756474233904,-5835.49114192,0.0003087,2]
[382005672,1756474233914,-560.92026608,0.0003088,2]
[382005673,1756474233924,-500.0,0.00030921,5]
[382005675,1756474233934,-500.0,0.00030921,5]
[382005677,1756474233944,-500.0,0.00030921,5]
[382005678,1756474233954,-500.0,0.00030921,5]
[382005680,1756474233964,-1000.0,0.00030921,5]
[382005682,1756474233974,-501.58738573,0.00030921,5]
[382005684,1756474233984,-500.0,0.00030921,5]
[382005686,1756474233995,-1000.0,0.00030921,5]
[382005688,1756474234005,-506.80487785,0.00030921,5]
[382005690,1756474234015,-1000.0,0.00030921,5]
[382005691,1756474234026,-1000.0,0.00030921,5]
[382005693,1756474234036,-63568.066994,0.00030925,2]
[382005695,1756474234046,-845.57753514,0.00030929,2]
[382005696,1756474234056,-217.30324474,0.00030929,2]
[382005697,1756474234065,-160.0,0.00030931,2]
[382005698,1756474234077,-59788.97457763,0.0003096,2]
[382005733,1756474237858,-765.44074425,0.0002918,2]
[382005735,1756474237868,-357.37,0.0003036,10]
[382005737,1756474237880,-199.0,0.00030457,120]
[382005739,1756474237889,-405.96506286,0.00030959,2]
[382005741,1756474237899,-1796.91259153,0.0003096,2]
[382005743,1756474237910,-618.44922971,0.0003096,2]
[382005745,1756474237922,-471.54538709,0.0003096,2]
[382005747,1756474237934,-892.18520804,0.0003096,2]
[382005749,1756474237943,-8.48644784,0.0003097,2]
[382005752,1756474237954,-1791.78345971,0.0003097,2]
[382005754,1756474237965,-2470.6695693,0.0003097,2]
[382005761,1756474238030,-59297.12751715,0.0003097,2]
[382005763,1756474238039,-500.0,0.00030973,5]
[382005765,1756474238049,-502.48789012,0.00030973,5]
[382005767,1756474238059,-500.0,0.00030973,5]
[382005769,1756474238069,-501.34941827,0.00030973,5]
[382005771,1756474238079,-500.0,0.00030973,5]
[382005773,1756474238089,-500.0,0.00030973,5]
[382005775,1756474238098,-500.0,0.00030973,5]
[382005777,1756474238107,-500.0,0.00030973,5]
[382005779,1756474238117,-500.0,0.00030973,5]
[382005781,1756474238129,-500.0,0.00030973,5]
[382005783,1756474238138,-500.0,0.00030973,5]
[382005785,1756474238147,-500.0,0.00030973,5]
[382005787,1756474238156,-500.0,0.00030973,2]
[382005789,1756474238166,-150.0,0.00030973,5]
[382005791,1756474238175,-150.0,0.00030973,5]
[382005793,1756474238185,-343.0,0.00030975,2]
[382005795,1756474238194,-150.0,0.00030979,120]
[382005797,1756474238203,-63568.066994,0.00030979,2]
[382005799,1756474238212,-2357.19,0.0003098,2]
[382005801,1756474238221,-2357.19,0.0003098,2]
[382005803,1756474238231,-2357.19,0.0003098,2]
[382005805,1756474238240,-2357.19,0.0003098,2]
[382005807,1756474238254,-2357.19,0.0003098,2]
[382005808,1756474238264,-2357.19,0.0003098,2]
[382005810,1756474238274,-2357.19,0.0003098,2]
[382005812,1756474238283,-2357.19,0.0003098,2]
[382005815,1756474238295,-2357.19,0.0003098,2]
[382005817,1756474238304,-2357.19,0.0003098,2]
[382005819,1756474238314,-2357.19,0.0003098,2]
[382005821,1756474238325,-2357.19,0.0003098,2]
[382005823,1756474238335,-2357.19,0.0003098,2]
[382005825,1756474238344,-2357.19,0.0003098,2]
[382005827,1756474238353,-127136.133988,0.0003098,2]
[382005829,1756474238363,-2357.19,0.00030989,2]
[382005831,1756474238372,-2357.19,0.00030989,2]
[382005833,1756474238386,-2357.19,0.00030989,2]
[382005835,1756474238396,-2357.19,0.00030989,2]
[382005836,1756474238405,-2357.19,0.00030989,2]
[382005838,1756474238416,-151.0,0.00030989,7]
[382005841,1756474238425,-151.0,0.00030989,7]
[382005843,1756474238435,-333.913761,0.00030989,7]
[382005844,1756474238446,-333.913761,0.00030989,7]
[382005846,1756474238457,-333.913761,0.00030989,7]
[382005848,1756474238467,-333.913761,0.00030989,7]
[382005850,1756474238478,-151.0,0.00030989,7]
[382005852,1756474238489,-160.887518,0.00030989,7]
[382005854,1756474238500,-151.0,0.00030989,7]
[382005856,1756474238510,-100000.0,0.0003099,2]
[382005858,1756474238521,-236.04,0.00031,7]
[382005870,1756474238644,-154.0,0.00031,120]
[382005872,1756474238654,-160.0,0.00031038,2]
[382005874,1756474238664,-2357.19,0.00031054,2]
[382005876,1756474238674,-2357.19,0.00031054,2]
[382005878,1756474238684,-2357.19,0.00031054,2]
[382005880,1756474238693,-2357.19,0.00031054,2]
[382005882,1756474238703,-2357.24326907,0.00031054,2]
[382005884,1756474238713,-500.0,0.00031073,5]
[382005886,1756474238723,-500.88955119,0.00031073,5]
[382005888,1756474238733,-150.0,0.00031073,5]
[382005890,1756474238743,-501.31030205,0.00031073,5]
[382005892,1756474238754,-500.0,0.00031073,5]
[382005894,1756474238765,-168.9190779,0.00031073,5]
[382005896,1756474238775,-601.21855107,0.00031073,5]
[382005898,1756474238785,-500.0,0.00031073,5]
[382005899,1756474238795,-500.0,0.00031073,5]
[382005902,1756474238806,-500.0,0.00031073,5]
[382005903,1756474238817,-420.0,0.00031118,2]
[382005906,1756474238829,-1181.0,0.00031119,3]
[382005908,1756474238839,-292.687492,0.00031121,7]
[382005910,1756474238850,-151.0,0.00031121,7]
[382005911,1756474238860,-151.0,0.00031121,7]
[382005913,1756474238871,-237.602183,0.00031121,7]
[382005915,1756474238892,-151.0,0.00031121,7]
[382005917,1756474238902,-151.0,0.00031121,7]
[382005919,1756474238912,-151.0,0.00031121,7]
[382005921,1756474238923,-161.990612,0.00031121,7]
[382005923,1756474238933,-161.990612,0.00031121,7]
[382005925,1756474238944,-161.990612,0.00031121,7]
[382005927,1756474238953,-161.990612,0.00031121,7]
[382005929,1756474238963,-151.0,0.00031121,7]
[382005931,1756474238972,-5835.4911419,0.00031125,2]
[382005933,1756474238982,-930.0,0.00031156,3]
[382005935,1756474238991,-500.0,0.00031173,5]
[382005937,1756474239001,-419.0,0.00031231,2]
[382005939,1756474239011,-5835.4911419,0.0003138,2]
[382005941,1756474239021,-560.92026606,0.0003139,2]
[382005943,1756474239030,-500.0,0.00031424,7]
[382005945,1756474239040,-500.0,0.00031448,7]
[382005947,1756474239049,-1503.03682746,0.00031468,5]
[382005948,1756474239059,-500.0,0.00031468,5]
[382005950,1756474239069,-1504.418764,0.00031468,5]
[382005952,1756474239078,-1000.0,0.00031521,5]
[382005954,1756474239088,-504.29528285,0.00031521,5]
[382005956,1756474239098,-1000.0,0.00031521,5]
[382005958,1756474239107,-260.70479331,0.00031521,5]
[382005960,1756474239117,-502.52472697,0.00031521,5]
[382005962,1756474239135,-1000.0,0.00031521,5]
[382005964,1756474239146,-500.0,0.00031521,5]
[382005966,1756474239158,-1000.0,0.00031521,5]
[382005968,1756474239168,-1000.0,0.00031521,2]
[382005970,1756474239180,-300.78409437,0.00031521,5]
[382005972,1756474239190,-250.0,0.00031521,5]
[382005974,1756474239200,-260.0,0.00031586,2]
[382005976,1756474239211,-250.0,0.00031621,5]
[382005978,1756474239221,-5835.4911419,0.00031635,2]
[382005980,1756474239231,-500.0,0.00031721,5]
[382005982,1756474239242,-151.0,0.00031721,7]
[382005984,1756474239253,-151.0,0.00031721,7]
[382005986,1756474239268,-333.913761,0.00031721,7]
[382005988,1756474239278,-333.913761,0.00031721,7]
[382005990,1756474239288,-333.913761,0.00031721,7]
[382005992,1756474239298,-333.913761,0.00031721,7]
[382005994,1756474239308,-151.0,0.00031721,7]
[382005996,1756474239317,-151.0,0.00031762,7]
[382005998,1756474239326,-151.0,0.00031762,7]
[382006000,1756474239336,-165.344412,0.00031762,7]
[382006002,1756474239346,-151.0,0.00031762,7]
[382006004,1756474239356,-161.990612,0.00031762,7]
[382006006,1756474239366,-161.990612,0.00031762,7]
[382006008,1756474239384,-161.990612,0.00031762,7]
[382006011,1756474239394,-161.990612,0.00031762,7]
[382006012,1756474239403,-152.601157,0.00031762,7]
[382006014,1756474239413,-500.0,0.00031773,5]
[382006016,1756474239422,-5835.4911419,0.0003189,2]
[382006018,1756474239433,-173.95077647,0.00031899,2]
[382006020,1756474239443,-560.92026606,0.000319,2]
[382006023,1756474239453,-8091.71032203,0.000319,2]
[382006025,1756474239462,-500.0,0.00031973,2]
[382006027,1756474239471,-500.0,0.00031973,5]
[382006028,1756474239480,-500.0,0.00031973,5]
[382006029,1756474239489,-500.0,0.00031973,5]
[382006030,1756474239499,-213.54671746,0.00031973,5]
[382006031,1756474239508,-502.16102371,0.00031973,5]
[382006032,1756474239517,-500.0,0.00031973,2]
[382006033,1756474239527,-500.0,0.00031973,5]
[382006034,1756474239536,-150.0,0.00031973,5]
[382006035,1756474239545,-151.0,0.00031979,7]
[382006036,1756474239555,-151.0,0.00031979,7]
[382006037,1756474239564,-151.0,0.0003198,7]
[382006038,1756474239574,-151.0,0.0003198,7]
[382006039,1756474239583,-151.0,0.0003198,7]
[382006040,1756474239592,-153.497539,0.0003198,7]
[382006041,1756474239601,-151.0,0.0003198,7]
[382006042,1756474239610,-151.0,0.0003198,7]
[382006043,1756474239620,-267.657014,0.0003199,7]
[382006044,1756474239635,-151.0,0.0003199,7]
[382006045,1756474239645,-151.0,0.0003199,7]
[382006047,1756474239654,-151.0,0.0003199,7]
[382006049,1756474239663,-233.97,0.0003199,3]
[382006051,1756474239673,-701.95,0.0003199,3]
[382006053,1756474239683,-151.0,0.0003199,7]
[382006055,1756474239692,-1027.954599,0.0003199,2]
[382006057,1756474239702,-161.990612,0.0003199,7]
[382006059,1756474239712,-161.990612,0.0003199,7]
[382006061,1756474239721,-161.990612,0.0003199,7]
[382006063,1756474239731,-161.990612,0.0003199,7]
[382006065,1756474239741,-217.30324474,0.0003199,7]
[382006067,1756474239751,-160.0,0.0003199,7]
[382006069,1756474239760,-31300.8409124,0.00031999,2]
[382006071,1756474239769,-47417.725052,0.00031999,2]
[382006073,1756474239779,-320.9874709,0.00031999,2]
[382006075,1756474239788,-193.8588881,0.00031999,2]
[382006077,1756474239798,-651.6114451,0.00031999,2]
[382006079,1756474239808,-22963.0236632,0.00031999,2]
[382006081,1756474239818,-1449.25703315,0.00032,2]
[382006083,1756474239828,-292624.97341142,0.00032,60]
[382006085,1756474239841,-403.06689934,0.00032,60]
[382006088,1756474239853,-199393.63142271,0.00032,60]
[382006090,1756474239865,-1297.5043873,0.00032,60]
[382006092,1756474239881,-8212.94265241,0.00032,60]
[382006094,1756474239897,-16069.58976198,0.00032,60]
[382006097,1756474239909,-4536.0,0.00032,60]
[382006111,1756474240034,-300.34583747,0.00031231,2]
[382006130,1756474240229,-337.52144941,0.00031231,2]
[382006132,1756474240239,-140.27205772,0.0003199,3]
[382006403,1756474242945,-175.40970209,0.00028743,2]
[382006415,1756474243049,-596.21651383,0.00028743,2]
[382006417,1756474243059,-420.97845638,0.00029697,2]
[382006419,1756474243069,-500.0,0.00029697,2]
[382006421,1756474243078,-500.0,0.00029697,2]
[382006423,1756474243088,-512.31136619,0.00029697,2]
[382006425,1756474243097,-199.0,0.00030457,120]
[382006427,1756474243107,-211.92794228,0.0003199,3]
[382006430,1756474243116,-704960.81967539,0.00032,60]
[382006723,1756474246065,-1647.5040385,0.00032,60]
[382006731,1756474246180,-60788.57523076,0.00032,60]
[382006732,1756474246191,-797.63,0.00032,7]
[382006733,1756474246207,-798.22,0.00032,7]
[382006734,1756474246216,-151.0,0.00032,7]
[382006735,1756474246225,-151.0,0.00032,7]
[382006736,1756474246234,-152.6708,0.00032,7]
[382006737,1756474246243,-151.0,0.00032,7]
[382006738,1756474246256,-845.57753514,0.00032,7]
[382006739,1756474246265,-232.6790651,0.00032,7]
[382006740,1756474246275,-161.990612,0.00032,7]
[382006741,1756474246284,-161.990612,0.00032,7]
[382006742,1756474246293,-161.990612,0.00032,7]
[382006744,1756474246303,-161.990612,0.00032,7]
[382006745,1756474246312,-151.0,0.00032,7]
[382006747,1756474246320,-151.0,0.00032,7]
[382006749,1756474246332,-333.913761,0.00032,7]
[382006751,1756474246341,-333.913761,0.00032,7]
[382006753,1756474246350,-333.913761,0.00032,7]
[382006755,1756474246359,-333.913761,0.00032,7]
[382006757,1756474246368,-236.755286,0.00032,7]
[382006759,1756474246378,-531.5560724,0.00032,2]
[382006761,1756474246394,-500.0,0.00032064,7]
[382006763,1756474246402,-1500.0,0.00032068,5]
[382006765,1756474246412,-866.9365323,0.00032068,5]
[382006766,1756474246421,-839.95306968,0.00032068,5]
[382006768,1756474246430,-1094.97896212,0.00032068,5]
[382006770,1756474246439,-500.01816328,0.00032068,2]
[382006772,1756474246449,-350.52458134,0.00032068,5]
[382006774,1756474246458,-360.0,0.00032134,2]
[382006776,1756474246468,-350.0,0.00032168,5]
[382006778,1756474246477,-1000.0,0.00032321,5]
[382006780,1756474246487,-1000.73080979,0.00032521,2]
[382006782,1756474246496,-987.48688278,0.00032521,5]
[382006784,1756474246506,-1000.0,0.00032521,5]
[382006786,1756474246515,-1000.0,0.00032521,5]
[382006787,1756474246525,-587.34291779,0.00032521,2]
[382006789,1756474246534,-500.0,0.00032521,5]
[382006791,1756474246543,-300.0,0.00032521,5]
[382006793,1756474246552,-460.0,0.00032682,2]
[382006795,1756474246562,-401.10708134,0.00032716,5]
[382006797,1756474246572,-10000.0,0.000328,60]
[382006799,1756474246581,-160.0,0.00032828,7]
[382006801,1756474246591,-1002.05172571,0.00032868,5]
[382006803,1756474246601,-500.0,0.00032877,7]
[382006805,1756474246610,-500.0,0.00032877,7]
[382006807,1756474246620,-500.0,0.00032877,7]
[382006809,1756474246635,-595.37962446,0.00032877,7]
[382006811,1756474246644,-400.62739741,0.00033068,5]
[382006813,1756474246654,-500.0,0.00033099,7]
[382006815,1756474246663,-560.0,0.0003323,2]
[382006817,1756474246672,-467.94,0.0003336,3]
[382006819,1756474246683,-704.4,0.0003336,3]
[382006821,1756474246692,-771.62621592,0.00033362,2]
[382006823,1756474246701,-1056.24834409,0.00033502,4]
[382006825,1756474246711,-587.0,0.00033579,2]
[382006827,1756474246720,-297.81,0.00033617,10]
[382006829,1756474246730,-500.0,0.00033627,7]
[382006831,1756474246739,-250.0,0.00033692,2]
[382006833,1756474246748,-660.0,0.00033778,2]
[382006835,1756474246758,-236.04,0.000339,7]
[382006837,1756474246767,-760.0,0.00034326,2]
[382006839,1756474246777,-154.0,0.000346,120]
[382006841,1756474246786,-165.991663,0.00034621,2]
[382006843,1756474246795,-293.85068442,0.00034641,7]
[382006844,1756474246803,-500.0,0.00034642,7]
[382006846,1756474246812,-860.0,0.00034874,2]
[382006848,1756474246821,-382.80128,0.000352,120]
[382006850,1756474246831,-200.0,0.000352,120]
[382006852,1756474246841,-200.0,0.000352,120]
[382006854,1756474246850,-370.74732,0.000352,120]
[382006856,1756474246859,-500.0,0.00035201,7]
[382006858,1756474246869,-500.0,0.00035219,7]
[382006860,1756474246879,-47417.725052,0.00035259,2]
[382006862,1756474246894,-320.9874709,0.00035259,2]
[382006864,1756474246903,-651.6114451,0.00035259,2]
[382006866,1756474246912,-22963.0236632,0.00035259,2]
[382006868,1756474246922,-179.71246006,0.00035342,14]
[382006870,1756474246931,-220.0,0.00035422,2]
[382006872,1756474246941,-500.0,0.00035449,7]
[382006874,1756474246950,-168.0,0.00035644,2]
[382006876,1756474246959,-500.0,0.00035669,7]
[382006878,1756474246968,-798.22,0.000358,7]
[382006880,1756474246978,-168.0,0.00035838,2]
[382006882,1756474246987,-168.0,0.000359,7]
[382006884,1756474246997,-6984.1616455,0.00036052,2]
[382006886,1756474247006,-168.0,0.00036084,2]
[382006888,1756474247016,-167.953838,0.00036115,2]
[382006890,1756474247028,-823.0,0.00036234,2]
[382006892,1756474247038,-168.0,0.00036258,2]
[382006894,1756474247047,-168.0,0.00036314,7]
[382006896,1756474247057,-168.0,0.00036522,2]
[382006898,1756474247066,-1561.0,0.0003669,120]
[382006900,1756474247075,-156.29,0.0003675,14]
[382006902,1756474247085,-160.844583,0.000368,60]
[382006904,1756474247094,-193.8588881,0.00036889,2]
[382006906,1756474247103,-1561.0,0.00036921,2]
[382006908,1756474247113,-1558.3771064,0.00036956,2]
[382006910,1756474247122,-168.0,0.00036985,7]
[382006912,1756474247138,-168.0,0.00037036,2]
[382006914,1756474247147,-200.0,0.000372,120]
[382006916,1756474247157,-370.74732,0.000372,120]
[382006918,1756474247166,-168.0,0.00037349,2]
[382006920,1756474247175,-168.0,0.00037651,7]
[382006921,1756474247185,-236.04,0.000377,7]
[382006923,1756474247194,-1352.0,0.00037726,120]
[382006925,1756474247203,-1561.0,0.00037941,7]
[382006927,1756474247212,-500.0,0.00037959,7]
[382006929,1756474247222,-500.0,0.0003799,7]
[382006931,1756474247231,-798.22,0.00038,7]
[382006933,1756474247240,-500.0,0.00038027,7]
[382006935,1756474247250,-1352.0,0.00038185,7]
[382006937,1756474247260,-154.0,0.000382,120]
[382006939,1756474247270,-168.0,0.0003826,2]
[382006941,1756474247284,-2151.0,0.0003829,2]
[382006943,1756474247293,-632.943,0.0003829,2]
[382006945,1756474247302,-1352.0,0.00038295,2]
[382006947,1756474247312,-500.0,0.00038316,7]
[382006949,1756474247322,-168.0,0.00038318,7]
[382006951,1756474247331,-1428.56,0.00038356,120]
[382006953,1756474247342,-47417.725052,0.00038519,2]
[382006955,1756474247354,-320.9874709,0.00038519,2]
[382006958,1756474247365,-651.6114451,0.00038519,2]
[382006959,1756474247375,-22963.0236632,0.00038519,2]
[382006961,1756474247393,-151.0,0.00038519,30]
[382006963,1756474247402,-161.990612,0.00038519,30]
[382006965,1756474247411,-161.990612,0.00038519,30]
[382006967,1756474247420,-161.990612,0.00038519,30]
[382006969,1756474247430,-161.990604,0.00038519,30]
[382006971,1756474247440,-151.0,0.00038519,30]
[382006973,1756474247449,-333.913761,0.00038519,30]
[382006975,1756474247459,-333.913761,0.00038519,30]
[382006977,1756474247469,-333.913761,0.00038519,30]
[382006979,1756474247479,-333.913761,0.00038519,30]
[382006981,1756474247488,-500.0,0.00038719,7]
[382006983,1756474247498,-500.0,0.0003873,2]
[382006985,1756474247507,-1352.0,0.00038781,2]
[382006987,1756474247516,-1352.0,0.00038821,2]
[382006989,1756474247525,-168.0,0.00038828,2]
[382006991,1756474247535,-1428.56,0.00038904,120]
[382006993,1756474247545,-168.0,0.00038912,2]
[382006995,1756474247554,-168.0,0.00038916,2]
[382006997,1756474247564,-500.0,0.00038955,7]
[382006999,1756474247574,-353.83113941,0.00038988,2]
[382007001,1756474247583,-1413.9092331,0.00038988,2]
[382007003,1756474247593,-529.77114056,0.00039,120]
[382007005,1756474247602,-217.30324474,0.00039,120]
[382007007,1756474247612,-417.15472785,0.00039,120]
[382007009,1756474247621,-500.11135516,0.00039,5]
[382007011,1756474247639,-1000.0,0.00039006,2]
[382007014,1756474247649,-1352.0,0.00039041,7]
[382007015,1756474247659,-638.93935436,0.00039048,2]
[382007018,1756474247668,-727.84464112,0.00039048,2]
[382007020,1756474247678,-1152.0,0.00039099,5]
[382007021,1756474247688,-151.0,0.00039106,2]
[382007024,1756474247698,-151.0,0.00039106,2]
[382007026,1756474247707,-151.0,0.00039106,2]
[382007027,1756474247717,-151.0,0.00039106,2]
[382007029,1756474247727,-151.0,0.00039106,2]
[382007031,1756474247736,-151.0,0.00039106,2]
[382007033,1756474247746,-261.07338642,0.00039106,2]
[382007035,1756474247755,-1374.32716384,0.00039106,2]
[382007038,1756474247765,-1000.0,0.00039106,2]
[382007039,1756474247775,-1000.0,0.00039106,2]
[382007042,1756474247784,-1000.0,0.00039106,2]
[382007044,1756474247794,-1000.0,0.00039106,2]
[382007045,1756474247803,-1000.0,0.00039106,2]
[382007047,1756474247813,-1000.0,0.00039106,2]
[382007050,1756474247822,-1000.0,0.00039106,2]
[382007052,1756474247832,-1000.0,0.00039106,2]
[382007054,1756474247841,-151.0,0.00039106,2]
[382007055,1756474247851,-1000.0,0.00039106,2]
[382007058,1756474247861,-156.587,0.00039106,2]
[382007059,1756474247870,-1000.0,0.00039106,2]
[382007062,1756474247887,-199.10576445,0.00039106,2]
[382007064,1756474247897,-1000.0,0.00039106,2]
[382007066,1756474247906,-1000.0,0.00039106,2]
[382007067,1756474247916,-1000.0,0.00039106,2]
[382007069,1756474247925,-1000.0,0.00039106,2]
[382007072,1756474247935,-1000.0,0.00039106,2]
[382007074,1756474247944,-1000.0,0.00039106,2]
[382007075,1756474247954,-1000.0,0.00039106,2]
[382007077,1756474247963,-1000.0,0.00039106,2]
[382007079,1756474247973,-1000.0,0.00039106,2]
[382007082,1756474247983,-1000.0,0.00039106,2]
[382007083,1756474247992,-187.78006525,0.00039106,2]
[382007086,1756474248002,-151.0,0.00039106,2]
[382007087,1756474248013,-151.0,0.00039106,2]
[382007089,1756474248023,-151.0,0.00039106,2]
[382007091,1756474248032,-151.0,0.00039106,2]
[382007094,1756474248042,-151.0,0.00039106,2]
[382007096,1756474248053,-151.0,0.00039106,2]
[382007097,1756474248063,-151.0,0.00039106,2]
[382007099,1756474248073,-151.0,0.00039106,2]
[382007101,1756474248082,-151.0,0.00039106,2]
[382007103,1756474248092,-151.0,0.00039106,2]
[382007105,1756474248102,-151.0,0.00039106,2]
[382007107,1756474248112,-151.0,0.00039106,2]
[382007109,1756474248121,-151.0,0.00039106,2]
[382007111,1756474248137,-151.0,0.00039106,2]
[382007113,1756474248147,-200.0,0.000392,120]
[382007116,1756474248157,-370.74732,0.000392,120]
[382007118,1756474248166,-160.844583,0.000392,60]
[382007120,1756474248176,-152.802298,0.000392,60]
[382007122,1756474248185,-1000.0,0.00039278,2]
[382007123,1756474248195,-250.0,0.00039363,2]
[382007126,1756474248205,-250.0,0.00039363,2]
[382007128,1756474248215,-250.0,0.00039363,2]
[382007130,1756474248225,-250.0,0.00039363,2]
[382007132,1756474248235,-250.0,0.00039363,2]
[382007134,1756474248244,-323.32113188,0.00039363,2]
[382007135,1756474248254,-2347.87260389,0.00039363,2]
[382007138,1756474248264,-500.0,0.00039363,2]
[382007140,1756474248276,-500.0,0.00039363,2]
[382007141,1756474248286,-151.0,0.00039363,2]
[382007144,1756474248297,-500.0,0.00039363,2]
[382007146,1756474248307,-151.0,0.00039363,2]
[382007148,1756474248317,-151.0,0.00039363,2]
[382007150,1756474248326,-500.0,0.00039363,2]
[382007152,1756474248336,-500.0,0.00039363,2]
[382007154,1756474248346,-151.0,0.00039363,2]
[382007156,1756474248358,-151.0,0.00039363,2]
[382007158,1756474248368,-151.0,0.00039363,2]
[382007160,1756474248378,-151.0,0.00039363,2]
[382007162,1756474248391,-500.0,0.00039363,2]
[382007164,1756474248401,-151.0,0.00039363,2]
[382007166,1756474248410,-151.0,0.00039363,2]
[382007177,1756474248420,-500.0,0.00039363,2]
[382007180,1756474248527,-151.0,0.00039363,2]
[382007181,1756474248536,-500.0,0.00039363,2]
[382007183,1756474248546,-151.0,0.00039363,2]
[382007185,1756474248556,-300.0,0.00039363,2]
[382007188,1756474248566,-151.0,0.00039363,2]
[382007189,1756474248576,-300.0,0.00039363,2]
[382007191,1756474248586,-500.0,0.00039363,2]
[382007194,1756474248596,-151.0,0.00039363,2]
[382007195,1756474248605,-151.0,0.00039363,2]
[382007197,1756474248616,-151.0,0.00039363,2]
[382007200,1756474248625,-300.0,0.00039363,2]
[382007202,1756474248644,-500.0,0.00039363,2]
[382007204,1756474248655,-151.0,0.00039363,2]
[382007205,1756474248665,-500.0,0.00039363,2]
[382007208,1756474248675,-300.0,0.00039363,2]
[382007210,1756474248685,-151.0,0.00039363,2]
[382007211,1756474248696,-151.0,0.00039363,2]
[382007213,1756474248707,-300.0,0.00039363,2]
[382007215,1756474248717,-500.0,0.00039363,2]
[382007218,1756474248727,-151.0,0.00039363,2]
[382007219,1756474248737,-151.0,0.00039363,2]
[382007222,1756474248747,-300.0,0.00039363,2]
[382007223,1756474248757,-151.0,0.00039363,2]